Cogmind - Beta 16 @@@ ROGUE MODE // 2025.12.21 @ 23:28:23 Player: PE-P51 Result: Self-destructed Performance ------------- Evolutions (4) 2000 Regions Visited (15) 3000 Robots Destroyed (173) 865 Value Destroyed (3973) 3973 Prototype IDs (43) 860 Alien Tech Used (0) 0 Bonus (798) 798 TOTAL SCORE: 11496 Bonus ------- High Alert Combat Kills 153 Follower Combat Kills 190 Aligned with FarCom 300 Met Data Miner 300 Friendly Fire -145 Cogmind --------- Core Integrity 819/850 Matter 290/300 Energy 125/125 System Corruption 7% Temperature Cool (0) Movement Flying (175) Ox2 Location -6/Factory Parts ------- > --- POWER (1) -------- Light Ion Engine > --- PROPULSION (5) --- Improved VTOL Module > --- UTILITY (7) ------ Improved Sensor Array Improved Signal Interpreter Advanced Terrain Scan Processor Improved Salvage Targeting Computer Hacking Suite System Shield Authchip [Propulsion] > --- WEAPON (2) ------- Cooled Plasma Cannon Scythe (fused) > --- INVENTORY (5) ---- Superbattery (1083) Advanced Terrain Scanner Skeleton Box Light Antimatter Cannon Rocket Array Peak State ------------ > --- POWER ------------ Light Angular Momentum Engine > --- PROPULSION ------- Improved VTOL Module Improved VTOL Module Improved VTOL Module Improved VTOL Module > --- UTILITY ---------- Improved Heat Sink Superbattery Improved Sensor Array Improved Signal Interpreter Hacking Suite Hacking Suite > --- WEAPON ----------- Light Antimatter Cannon Spear > --- INVENTORY -------- Xenon Bombardment Thruster Hardened Light Armor Plating Skeleton Box Rocket Array Remote Datajack [Rating: 60] Favorites ----------- Power Improved Ion Engine Engine Improved Ion Engine Power Core Nuclear Core Propulsion Improved VTOL Module Treads Improved Treads Leg Aluminum Leg Flight Unit Improved VTOL Module Utility Transport Network Coupler Device Cooling System Storage Large Storage Unit Processor Transport Network Coupler Hackware Hacking Suite Protection Hardened Medium Armor Plating Weapon Advanced Beam Cannon Energy Gun Small Laser Energy Cannon Advanced Beam Cannon Ballistic Gun Assault Rifle Ballistic Cannon Light Antimatter Cannon Launcher Rocket Launcher Special Weapon Remote Datajack Impact Weapon Great Maul Slashing Weapon Scythe Piercing Weapon Spear Special Melee Weapon Datajack Build | -11 -10 -10 -9 -9 -9 -8 -8 -7 -7 -7 -7 -7 -7 -6 -6 ------- Run | Yrd Mat Min Mat Min Exi Min Mat Fac Was Fac Low Low Dat Pro Fac Slots Evolved 8 | . . . 2 . . . 2 2 . . . . . . 2 Power . | . . . . . . . . . . . . . . . . Propulsion 3 | . . . . . . . . 2 . . . . . . 1 Utility 5 | . . . 2 . . . 2 . . . . . . . 1 Weapon . | . . . . . . . . . . . . . . . . Parts Attached 125 | . 15 6 29 . . 2 24 16 6 12 2 . . 1 12 Power 14 | . 2 1 2 . . . 3 2 2 . . . . . 2 Engine 11 | . 2 1 2 . . . 2 1 2 . . . . . 1 Core 3 | . . . . . . . 1 1 . . . . . . 1 Reactor . | . . . . . . . . . . . . . . . . Propulsion 26 | . 5 . 8 . . . 3 4 2 3 . . . . 1 Treads 13 | . 2 . 8 . . . 3 . . . . . . . . Leg 3 | . 3 . . . . . . . . . . . . . . Wheel . | . . . . . . . . . . . . . . . . Hover . | . . . . . . . . . . . . . . . . Flight 10 | . . . . . . . . 4 2 3 . . . . 1 Utility 46 | . 2 1 7 . . . 13 7 1 6 2 . . 1 6 Device 16 | . . . 3 . . . 5 2 . 3 1 . . . 2 Storage 4 | . 1 . 1 . . . 1 . . 1 . . . . . Processor 7 | . 1 . 1 . . . 2 . . . . . . 1 2 Hackware 11 | . . . . . . . . 5 1 2 1 . . . 2 Protection 8 | . . 1 2 . . . 5 . . . . . . . . Artifact . | . . . . . . . . . . . . . . . . Weapon 39 | . 6 4 12 . . 2 5 3 1 3 . . . . 3 Energy Gun 2 | . . . 2 . . . . . . . . . . . . Energy Cannon 11 | . . . 7 . . 1 2 . . . . . . . 1 Ballistic Gun 11 | . 6 3 2 . . . . . . . . . . . . Ballistic Cannon 1 | . . . . . . . . . 1 . . . . . . Launcher 6 | . . 1 1 . . 1 1 1 . 1 . . . . . Special Weapon 1 | . . . . . . . . . . 1 . . . . . Impact Weapon 1 | . . . . . . . . 1 . . . . . . . Slashing Weapon 4 | . . . . . . . 2 . . . . . . . 2 Piercing Weapon 1 | . . . . . . . . . . 1 . . . . . Special Melee Weapon 1 | . . . . . . . . 1 . . . . . . . Unidentified Prototypes 8 | . . . 3 . . . 2 . 1 1 . . . . 1 Corrupted Parts 1 | . . . . . . . . . . . . . . . 1 System Corruption 2 | . . . . . . . . . . . . . . . 2 Parts Lost 24 | . . . . . . . 8 1 . 6 1 . . 5 3 Power 2 | . . . . . . . 1 . . . . . . 1 . Propulsion 9 | . . . . . . . 2 . . 2 . . . 2 3 Utility 11 | . . . . . . . 5 1 . 4 . . . 1 . Weapon 2 | . . . . . . . . . . . 1 . . 1 . Highest Loss Streak 4 | . . . . . . . 4 1 . 3 1 . . 4 2 To Critical Strikes . | . . . . . . . . . . . . . . . . Average Backups 11 | . 9 10 11 14 15 15 15 4 5 4 5 4 5 4 4 Power . | . 1 1 1 1 1 1 . . . . . . . . . Propulsion 4 | . 4 5 5 7 7 7 6 . . . 1 1 1 . . Utility 1 | . 1 1 . . . 1 2 2 2 1 1 1 1 1 1 Weapon 3 | . 1 2 4 6 6 5 5 . 1 1 2 1 2 2 1 Tool/Special . | . . . . . . . . . . . . . . . . Unused Backups 24 | . 11 . . . 1 . 7 3 1 . . . . . 1 Power 1 | . 1 . . . . . . . . . . . . . . Propulsion 12 | . 6 . . . . . 5 1 . . . . . . . Utility 4 | . 1 . . . . . . 1 1 . . . . . 1 Weapon 7 | . 3 . . . 1 . 2 1 . . . . . . . Tool/Special . | . . . . . . . . . . . . . . . . Average Slot Usage (%) 96 | . 99 100 99 100 100 100 97 96 99 94 98 92 92 89 77 Engine 7 | . 14 14 10 11 11 11 5 . 2 6 7 7 7 6 . Core 1 | . . . . . . . 3 6 4 . . . . . . Treads 12 | . 2 28 22 22 22 22 18 . . . . . . . . Leg 2 | . 25 . . . . . . . . . . . . . . Flight 8 | . . . . . . . . 29 30 28 30 30 30 29 20 Device 8 | . . . 8 11 11 11 11 7 7 7 7 7 7 7 6 Storage 8 | . 14 14 11 11 11 11 9 . . 6 7 5 7 7 3 Processor 12 | . 13 8 10 11 11 11 16 14 7 7 7 7 7 11 19 Hackware 6 | . . . . . . . . 20 29 20 21 23 23 18 15 Protection 8 | . . 5 13 11 11 11 15 . . . . . . . . Energy Cannon 11 | . . . 17 22 22 22 17 1 . . . . . . 4 Ballistic Gun 3 | . 25 26 4 . . . . . . . . . . . . Peak Build Rating 60 | . 8 9 21 22 23 23 36 45 58 59 60 59 52 53 59 Average Rating 31 | . 7 8 18 21 22 22 31 41 50 54 55 51 52 51 49 On Entrance 31 | 6 6 8 9 21 22 23 23 31 41 58 53 52 52 52 40 Avg Prop Armor Cover (%) 11 | . . . . . . . . . . . . . . . 11 Naked Turns . | . . . . . . . . . . . . . . . . Heaviest Build 109 | 11 19 21 45 45 45 45 109 21 19 21 20 21 16 16 17 Greatest Support 46 | 20 40 40 46 46 46 46 46 20 22 22 20 20 20 21 21 Greatest Overweight (x) 4 | . . . 1 . . . 2 4 . . . 1 . . 3 Average Overweight (x) . | . . . . . . . 1 . . . . . . . . Largest Inventory Capacity 25 | . 10 10 15 15 15 15 25 5 5 5 5 5 5 5 5 Average Capacity 12 | . 9 10 12 15 15 15 19 5 5 5 5 5 5 5 5 Most Carried 22 | . 10 10 14 15 15 15 22 5 5 5 5 5 5 5 5 Average Carried 11 | . 9 9 11 14 14 15 15 4 5 4 5 4 5 4 4 Final Capacity 25 | 8 10 10 15 15 15 15 25 5 5 5 5 5 5 5 5 Final Carried 20 | 6 10 10 14 15 15 15 20 5 5 5 5 5 5 4 5 Class Distribution -------------------- 39% | Mutant 24% | Hacker-Sprinter 21% | Skirmisher 9% | Scavenger-Mutant Dominant Class ---------------- Mutant | -10/Materials Mutant | -10/Mines Mutant | -9/Materials Mutant | -9/Mines Mutant | -9/Exiles Mutant | -8/Mines Skirmisher | -8/Materials Hacker-Scout | -7/Factory Hacker-Sprinter | -7/Waste Hacker-Sprinter | -7/Factory Hacker-Sprinter | -7/Lower Caves Hacker-Sprinter | -7/Lower Caves Hacker-Sprinter | -7/Data Miner Hacker-Sprinter | -6/Proximity Caves Hacker-Sprinter | -6/Factory Resources | -11 -10 -10 -9 -9 -9 -8 -8 -7 -7 -7 -7 -7 -7 -6 -6 ----------- Run | Yrd Mat Min Mat Min Exi Min Mat Fac Was Fac Low Low Dat Pro Fac Matter Collected 3087 | 200 469 70 496 . . 17 494 85 277 369 143 107 . 68 292 Remotely . | . . . . . . . . . . . . . . . . Salvage Created 6220 | . 732 64 1730 104 . 32 2063 102 42 619 87 . . . 645 Parts 318 | . 41 12 92 3 . 6 105 1 3 27 8 . . . 20 Haulers Intercepted 16 | . 2 . 6 . . . 6 . . 2 . . . . . Recyclers Shooed 15 | . 2 1 4 . . . 1 1 . 4 . . . . 2 Parts Field Recycled . | . . . . . . . . . . . . . . . . Retrieved Matter . | . . . . . . . . . . . . . . . . Parts Self-Destructed 9 | . . . . . . . . . . . 7 2 . . . Prevented 1 | . . . . . . . . . . . 1 . . . . Parts Restored . | . . . . . . . . . . . . . . . . Kills | -11 -10 -10 -9 -9 -9 -8 -8 -7 -7 -7 -7 -7 -7 -6 -6 ------- Run | Yrd Mat Min Mat Min Exi Min Mat Fac Was Fac Low Low Dat Pro Fac Combat Hostiles Destroyed 108 | . 16 6 32 3 . 4 35 1 . 7 1 2 . . 1 Melee 4 | . . . . . . . . . . 3 1 . . . . Guns 24 | . 14 3 7 . . . . . . . . . . . . Cannons 53 | . . . 21 3 . . 28 . . . . . . . 1 AOE 24 | . 2 3 4 . . 4 4 1 . 4 . 2 . . . Classes Destroyed 17 | . 6 . 4 2 . . 2 1 . . 1 1 . . . Worker 9 | . 1 . . . . . 4 . . 2 . . . . 2 Builder 8 | . 1 . 2 . . 1 2 . . . . . . . 2 Tunneler 1 | . . . . . . . 1 . . . . . . . . Hauler 16 | . 2 . 6 . . . 6 . . 2 . . . . . Recycler 17 | . 2 . 2 . . . 5 1 . 3 . . . . 4 Minesweeper 1 | . . . . . . . . . . . 1 . . . . Operator 5 | . . . 1 . . . 2 . . 2 . . . . . Watcher 8 | . . . 3 . . . 1 1 . 3 . . . . . Swarmer 40 | . 6 6 7 . . 4 13 . . 4 . . . . . Grunt 36 | . 10 . 14 1 . . 11 . . . . . . . . Brawler 2 | . . . 1 . . . 1 . . . . . . . . Duelist 1 | . . . . 1 . . . . . . . . . . . Sentry 20 | . . . 10 . . . 9 . . . 1 . . . . Hunter 1 | . . . . . . . 1 . . . . . . . . Programmer 5 | . . . . . . . . 1 . 3 . . . . 1 Thief 2 | . . . . . . . . . . . . 2 . . . Assembled 1 | . . . . 1 . . . . . . . . . . . Thug 1 | . . . . . . . . . 1 . . . . . . Best Kill Streak 7 | . 5 3 6 2 . 5 7 1 . 5 1 2 . . 3 Combat Bots Only 5 | . 4 3 5 2 . 4 4 1 . 4 1 2 . . 1 Max Kills in Single Turn 3 | . 2 3 3 1 . 3 3 1 1 2 1 1 . . 1 Gunslinging 1 | . . 1 1 . . . . . . . . . . . . Exploded 3 | . 2 3 2 . . 2 2 1 . 2 . 1 . . . Melee 1 | . . . . . . . . . . 1 1 . . . . Uniques/NPCs Destroyed . | . . . . . . . . . . . . . . . . Combat | -11 -10 -10 -9 -9 -9 -8 -8 -7 -7 -7 -7 -7 -7 -6 -6 -------- Run | Yrd Mat Min Mat Min Exi Min Mat Fac Was Fac Low Low Dat Pro Fac Hostile Shots Fired 728 | . 86 15 125 8 . 6 174 128 . 65 12 31 . 47 31 Missed 310 | . 21 4 36 3 . 3 47 88 . 40 6 20 . 29 13 Hits 418 | . 65 11 89 5 . 3 127 40 . 25 6 11 . 18 18 Melee 4 | . . . . . . . 4 . . . . . . . . Projectile 414 | . 65 11 89 5 . 3 123 40 . 25 6 11 . 18 18 Critical Strikes 12 | . . . 5 . . . 5 1 . 1 . . . . . Damage Taken 5562 | . 737 94 1142 65 . 41 1818 499 . 308 71 212 . 295 280 Core 996 | . 202 . 131 12 . 7 152 242 . 35 24 54 . 106 31 Absorbed by Shields 28 | . . . . . . . . 28 . . . . . . . Ignored by Resistances 129 | . . . . . . . 129 . . . . . . . . Regen/Repaired (Parts) 328 | . . . 51 . . . 193 . 34 28 . . . . 22 Core Remaining (%) 57 | 100 . 19 . . . 62 72 . . . . . . 34 . Volleys Fired 395 | . 81 6 114 10 . 2 126 7 . 18 . 24 . . 7 Largest 2 | . 2 2 2 1 . 1 2 2 . 1 . 1 . . 1 Hottest 143 | . 90 40 136 68 . 33 143 143 . 51 . 51 . . 35 Shots Fired 678 | . 162 11 198 10 . 2 238 9 1 17 . 23 . . 7 Gun 242 | . 162 10 70 . . . . . . . . . . . . Cannon 409 | . . . 125 10 . . 228 4 1 13 . 21 . . 7 Launcher 27 | . . 1 3 . . 2 10 5 . 4 . 2 . . . Special . | . . . . . . . . . . . . . . . . Kinetic 259 | . 144 10 70 . . . . . 1 13 . 21 . . . Thermal 392 | . 18 . 125 10 . . 228 4 . . . . . . 7 Explosive 27 | . . 1 3 . . 2 10 5 . 4 . 2 . . . Electromagnetic . | . . . . . . . . . . . . . . . . Robot Hit Streak 16 | . 7 9 16 5 . 3 13 2 3 . . 4 . . 3 Robot Miss Streak 6 | . 5 2 4 2 . . 5 2 . 2 . 6 . . 2 Penetration Max . | . . . . . . . . . . . . . . . . Secondary Targets 4 | . 1 2 1 . . . . . . . . . . . . Max Gunslinging Chain 1 | . 1 1 1 . . . . . . . . . . . . Shots Hit Robots 429 | . 71 9 128 7 . 2 143 9 1 22 3 4 . . 30 Core Hits 221 | . 36 7 56 3 . 8 71 3 1 16 2 6 . . 12 Critical Kills 3 | . . . 1 . . . 2 . . . . . . . . Critical Parts Destroyed 5 | . 1 . 1 . . . . . . 3 . . . . . Critical Strikes 13 | . 2 . 2 . . . 2 . . 5 1 . . . 1 Burn 1 | . 1 . . . . . . . . . . . . . . Meltdown 3 | . . . 1 . . . 2 . . . . . . . . Destroy 2 | . 1 . 1 . . . . . . . . . . . . Smash 3 | . . . . . . . . . . 3 . . . . . Sever 1 | . . . . . . . . . . . . . . . 1 Impale 3 | . . . . . . . . . . 2 1 . . . . Melee Attacks 127 | . . . . . . . 6 27 . 40 3 . . 4 47 Impact 34 | . . . . . . . . 23 . 11 . . . . . Slashing 53 | . . . . . . . 6 . . . . . . . 47 Piercing 36 | . . . . . . . . . . 29 3 . . 4 . Sneak Attacks 27 | . . . . . . . 2 4 . 10 1 . . . 10 Combat Hostiles . | . . . . . . . . . . . . . . . . Follow-up Attacks . | . . . . . . . . . . . . . . . . Damage Inflicted 12661 | . 1256 236 2742 157 . 351 3960 201 45 1885 136 339 . . 1353 Guns 1429 | . 782 80 567 . . . . . . . . . . . . Cannons 5227 | . . . 1672 153 . . 3142 20 45 . . . . . 195 Explosions 2709 | . 424 156 365 . . 266 519 144 . 496 . 339 . . . Melee 2870 | . . . . . . . 150 37 . 1389 136 . . . 1158 Ramming 426 | . 50 . 138 4 . 85 149 . . . . . . . . Kinetic 1391 | . 699 80 567 . . . . . 45 . . . . . . Thermal 5265 | . 83 . 1672 153 . . 3142 20 . . . . . . 195 Explosive 2709 | . 424 156 365 . . 266 519 144 . 496 . 339 . . . Electromagnetic . | . . . . . . . . . . . . . . . . Impact 659 | . . . . . . . . 37 . 622 . . . . . Slashing 1308 | . . . . . . . 150 . . . . . . . 1158 Piercing 903 | . . . . . . . . . . 767 136 . . . . Highest Corruption 7 | . . . . . . . . 4 4 5 5 5 5 6 7 Average Corruption 4 | . . . . . . . . 2 4 4 5 5 5 5 3 Corruption Purged . | . . . . . . . . . . . . . . . . Corruption Blocked . | . . . . . . . . . . . . . . . . Effects 82 | . . . . . . . . 1 11 27 19 11 . 9 4 Message Errors 19 | . . . . . . . . . 3 6 2 1 . 6 1 Matter Fused 22 | . . . . . . . . . 2 9 6 4 . . 1 Heat Flow Errors 11 | . . . . . . . . . 1 5 1 2 . 2 . Energy Discharges 7 | . . . . . . . . 1 1 2 3 . . . . Parts Rejected 2 | . . . . . . . . . . 1 1 . . . . Parts Fused 2 | . . . . . . . . . 1 . . . . . 1 Data Loss (minor) 10 | . . . . . . . . . 1 2 3 3 . . 1 Data Loss (major) 6 | . . . . . . . . . 1 1 3 . . 1 . Misfires 1 | . . . . . . . . . 1 . . . . . . Weapon Failures 2 | . . . . . . . . . . 1 . 1 . . . Overload Shots . | . . . . . . . . . . . . . . . . Overflow Damage 911 | . 72 . . . . . 189 17 . 492 11 20 . . 110 Projectiles 65 | . . . . . . . 65 . . . . . . . . Explosions 128 | . 72 . . . . . 34 2 . . . 20 . . . Melee 718 | . . . . . . . 90 15 . 492 11 . . . 110 Knockbacks . | . . . . . . . . . . . . . . . . Impact . | . . . . . . . . . . . . . . . . Kinetic . | . . . . . . . . . . . . . . . . Secondary . | . . . . . . . . . . . . . . . . Self-Inflicted Damage 237 | . . . . . . 15 200 . . . . 22 . . . Shots 4 | . . . . . . 1 2 . . . . 1 . . . Rammed 53 | . . 1 24 2 . 9 17 . . . . . . . . Targets Rammed 70 | . 12 1 26 2 . 9 20 . . . . . . . . Kicked 12 | . 12 . . . . . . . . . . . . . . Crushed 5 | . . . 2 . . . 3 . . . . . . . . Highest Temperature 287 | . 240 . 249 1 . . 235 54 223 287 268 257 . 214 . Average Temperature 75 | . 72 . 47 1 . . 79 24 100 98 208 81 . 115 . Received Heat Transfer 1662 | . 195 . 567 12 . . 720 48 . 24 39 18 . 12 27 Siege Activations . | . . . . . . . . . . . . . . . . Martial Activations . | . . . . . . . . . . . . . . . . Shielding Activations . | . . . . . . . . . . . . . . . . Robots Disrupted . | . . . . . . . . . . . . . . . . Combat Hostiles . | . . . . . . . . . . . . . . . . Robots Corrupted 2 | . . . . . . . . 1 . 1 . . . . . Combat Hostiles . | . . . . . . . . . . . . . . . . Parts Fried 3 | . . . . . . . . 2 . 1 . . . . . Impact Corruptions 9 | . . . . . . . . 1 . 8 . . . . . Robots Melted 4 | . . . 1 . . . 3 . . . . . . . . Combat Hostiles 3 | . . . . . . . 3 . . . . . . . . Parts Melted 22 | . 1 . 7 . . . 10 1 . . . . . . 3 Heat Transferred 8889 | . 285 . 2997 259 . . 5061 37 . . . . . . 250 Parts Sabotaged . | . . . . . . . . . . . . . . . . Parts Stolen . | . . . . . . . . . . . . . . . . Parts Stripped . | . . . . . . . . . . . . . . . . Power Chain Reactions . | . . . . . . . . . . . . . . . . Alert | -11 -10 -10 -9 -9 -9 -8 -8 -7 -7 -7 -7 -7 -7 -6 -6 ------- Run | Yrd Mat Min Mat Min Exi Min Mat Fac Was Fac Low Low Dat Pro Fac Maximum Alert Level 2 | . 1 . 2 1 . . 2 2 . . . . . . . Low Security (%) 63 | . 82 100 64 91 . 100 34 . 100 100 . . . . 100 Level 1 15 | . 17 . 22 8 . . 20 55 . . . . . . . Level 2 20 | . . . 13 . . . 45 44 . . . . . . . Level 3 . | . . . . . . . . . . . . . . . . Level 4 . | . . . . . . . . . . . . . . . . Level 5 . | . . . . . . . . . . . . . . . . High Security . | . . . . . . . . . . . . . . . . Max Security . | . . . . . . . . . . . . . . . . Peak Influence 698 | . 366 170 452 210 . 111 698 526 190 159 . . . . 150 Initial 317 | . . 130 54 172 . . 24 317 182 . . . . . 150 Average 195 | . 87 126 189 108 . 13 334 379 78 54 . . . . 48 Influence Increases 5383 | . 661 151 1144 68 . 116 1343 683 43 402 190 210 . 30 342 Destroy 0b10 Robot/C 2120 | . 320 120 640 40 . 80 700 40 . 140 20 . . . 20 Destroy 0b10 Robot/NC 325 | . 30 . 70 . . 5 105 10 . 60 5 . . . 40 Destroy Leader 588 | . 64 20 208 10 . 10 194 22 . 50 . . . . 10 Allied During Kill 5 | . . . . 3 . . . 2 . . . . . . . Trap Triggered on 0b10 60 | . 20 . . . . . 40 . . . . . . . . Successful Hack 180 | . 14 . 51 . . 5 13 12 . 25 . . . . 60 Select Force Hacks 150 | . 60 . 60 . . . 30 . . . . . . . . Disable Machine 315 | . 45 . 75 15 . . 120 30 . 30 . . . . . Destroy Structure 305 | . 33 11 25 . . 16 81 42 43 37 . . . . 17 Advance Influence 150 | . . . . . . . . . . . . . . . 150 Partial Spotted 75 | . . . . . . . . 45 . 15 . . . . 15 Lose Combat Pursuer 1110 | . 75 . 15 . . . 60 480 . 45 165 210 . 30 30 Influence Decreases 5383 | . 325 346 843 510 . 53 708 861 563 291 242 129 140 30 342 Entered New Map 1515 | . . 206 87 270 . . 39 381 338 . 42 12 140 . . Time Decay 3286 | . 325 140 606 206 . 53 599 270 185 240 190 117 . 30 325 Search Patrol Dispatched 100 | . . . . . . . . 100 . . . . . . . Lost Part 147 | . . . . . . . 70 10 . 51 10 . . . 6 Lost Ally 185 | . . . . 34 . . . 100 40 . . . . . 11 Purge Threat 150 | . . . 150 . . . . . . . . . . . . Squads Dispatched 32 | . 4 . 4 . . . 7 5 . 7 . 1 . . 4 Investigation 18 | . 3 . 3 . . . 5 1 . 3 . . . . 3 Extermination 7 | . . . . . . . . 2 . 4 . . . . 1 Reinforcement 5 | . 1 . 1 . . . 1 2 . . . . . . . Assault 2 | . . . . . . . 1 . . . . 1 . . . Garrison . | . . . . . . . . . . . . . . . . Intercept . | . . . . . . . . . . . . . . . . Searches Triggered 1 | . . . . . . . . 1 . . . . . . . Data Miner Redirects 1 | . . . . . . . . . . . . . . . 1 Construction Impeded . | . . . . . . . . . . . . . . . . Haulers Reinforced . | . . . . . . . . . . . . . . . . Active Scanning Responses . | . . . . . . . . . . . . . . . . Cargo Convoy Interrupts . | . . . . . . . . . . . . . . . . Stealth | -11 -10 -10 -9 -9 -9 -8 -8 -7 -7 -7 -7 -7 -7 -6 -6 --------- Run | Yrd Mat Min Mat Min Exi Min Mat Fac Was Fac Low Low Dat Pro Fac Distress Signals 14 | . 2 . 2 . . . 6 2 . . . . . 2 . Communications Jammed . | . . . . . . . . . . . . . . . . Distress Signals . | . . . . . . . . . . . . . . . . Times Spotted 302 | . 37 6 65 4 . 4 71 44 2 18 10 23 . 8 10 Peak Tracking Total 8 | . 4 3 5 2 . 4 7 8 1 5 4 7 . 7 4 Tactical Retreats 32 | . 4 . 1 1 . . 4 10 . 2 4 4 . 1 1 Traps | -11 -10 -10 -9 -9 -9 -8 -8 -7 -7 -7 -7 -7 -7 -6 -6 ------- Run | Yrd Mat Min Mat Min Exi Min Mat Fac Was Fac Low Low Dat Pro Fac Traps Triggered 16 | . 2 . 1 . . . 5 5 . 3 . . . . . Indirectly . | . . . . . . . . . . . . . . . . Trap Hack Attempts . | . . . . . . . . . . . . . . . . Triggered . | . . . . . . . . . . . . . . . . Disarmed . | . . . . . . . . . . . . . . . . Reprogrammed 9 | . 5 . . . . . 4 . . . . . . . . Reused 9 | . 2 . . . . . 4 . . . 3 . . . . Traps Extracted . | . . . . . . . . . . . . . . . . Installed 10 | . . . . . . . . . . . 10 . . . . Triggered 9 | . 2 . . . . . 4 . . . 3 . . . . Machines | -11 -10 -10 -9 -9 -9 -8 -8 -7 -7 -7 -7 -7 -7 -6 -6 ---------- Run | Yrd Mat Min Mat Min Exi Min Mat Fac Was Fac Low Low Dat Pro Fac Machines Disabled 23 | . 3 . 6 1 . . 8 2 . 2 . 1 . . . Max in Single Turn 2 | . 2 . 2 1 . . 2 1 . 1 . 1 . . . Garrison Access 3 | . . . . . . . . 1 . 1 . . . . 1 Machines Repaired . | . . . . . . . . . . . . . . . . Machines Dismantled . | . . . . . . . . . . . . . . . . Machines Sabotaged . | . . . . . . . . . . . . . . . . Overloaded Fab Kills . | . . . . . . . . . . . . . . . . Hacking | -11 -10 -10 -9 -9 -9 -8 -8 -7 -7 -7 -7 -7 -7 -6 -6 --------- Run | Yrd Mat Min Mat Min Exi Min Mat Fac Was Fac Low Low Dat Pro Fac Machines Accessed 73 | . 8 . 13 . 1 1 16 9 . 14 . . 2 . 9 Terminals 39 | . 6 . 8 . . 1 11 4 . 7 . . . . 2 Fabricators 9 | . . . . . . . . 3 . 4 . . . . 2 Repair Stations 5 | . . . 2 . . . 1 . . 1 . . . . 1 Recycling Units 8 | . 2 . 2 . . . 1 . . 1 . . . . 2 Scanalyzers 5 | . . . 1 . . . 2 1 . . . . . . 1 Garrison Access 4 | . . . . . . . 1 1 . 1 . . . . 1 Total Hacks 207 | . 25 . 37 . 1 2 40 19 . 33 . . 18 . 32 Successful 120 | . 8 . 24 . 1 1 15 13 . 21 . . 18 . 19 Failed 85 | . 17 . 12 . . 1 25 5 . 12 . . . . 13 Catastrophic 14 | . 4 . 1 . . . 4 . . 4 . . . . 1 Database Lockouts 2 | . . . 1 . . . . 1 . . . . . . . Manual 88 | . 21 . 14 . 1 . 25 9 . 12 . . . . 6 Terminals 94 | . 20 . 19 . . 2 28 9 . 13 . . . . 3 Fabricators 30 | . . . . . . . . 7 . 14 . . . . 9 Repair Stations 16 | . . . 9 . . . 2 . . 2 . . . . 3 Recycling Units 20 | . 5 . 7 . . . 2 . . 3 . . . . 3 Scanalyzers 18 | . . . 2 . . . 6 1 . . . . . . 9 Garrison Access 10 | . . . . . . . 2 2 . 1 . . . . 5 Terminal Hacks 45 | . 5 . 10 . 1 1 4 3 . 3 . . 18 . . Part Schematic 15 | . 2 . 1 . . . . 1 . . . . 11 . . Robot Schematic 5 | . . . . . . . . 1 . . . . 4 . . Robot Analysis 4 | . . . 2 . . . 1 . . 1 . . . . . Prototype ID Bank 4 | . . . 1 . . . . . . . . . 3 . . Branch Access Points 2 | . . . 1 . . . . . . 1 . . . . . Alert Level 2 | . . . 2 . . . . . . . . . . . . Unreport Threat 1 | . . . 1 . . . . . . . . . . . . Locate Traps 3 | . 2 . 1 . . . . . . . . . . . . Reprogram Traps 2 | . 1 . . . . . 1 . . . . . . . . Recall Investigation 1 | . . . . . . . 1 . . . . . . . . Recall Extermination 1 | . . . . . . . . . . 1 . . . . . Hauler Manifests 1 | . . . . . . . 1 . . . . . . . . Zone Layout 3 | . . . 1 . . 1 . 1 . . . . . . . Proto ID Catalog 1 | . . . . . 1 . . . . . . . . . . Fabricator Hacks 17 | . . . . . . . . 4 . 7 . . . . 6 Network Status 3 | . . . . . . . . 1 . 1 . . . . 1 Load Schematic 9 | . . . . . . . . 2 . 4 . . . . 3 Build 5 | . . . . . . . . 1 . 2 . . . . 2 Repair Station Hacks 13 | . . . 7 . . . 2 . . 2 . . . . 2 Scan Component 7 | . . . 4 . . . 1 . . 1 . . . . 1 Repair 6 | . . . 3 . . . 1 . . 1 . . . . 1 Recycling Unit Hacks 7 | . 1 . 2 . . . 1 . . 1 . . . . 2 Retrieve Components 7 | . 1 . 2 . . . 1 . . 1 . . . . 2 Scanalyzer 11 | . . . 2 . . . 5 1 . . . . . . 3 Insert Component 5 | . . . 1 . . . 2 . . . . . . . 2 Analyze 4 | . . . 1 . . . 2 . . . . . . . 1 Retrieve Study 2 | . . . . . . . 1 1 . . . . . . . Garrison Access Hacks 3 | . . . . . . . . 1 . 1 . . . . 1 Seal Access 3 | . . . . . . . . 1 . 1 . . . . 1 Unauthorized Hacks 24 | . 2 . 3 . . . 3 4 . 7 . . . . 5 Terminals 7 | . . . 1 . . . 2 2 . . . . . . 2 Assimilate 4 | . . . . . . . . 2 . . . . . . 2 Operators 3 | . . . 1 . . . 2 . . . . . . . . Fabricators 10 | . . . . . . . . 2 . 5 . . . . 3 Prioritize 3 | . . . . . . . . . . 2 . . . . 1 Liberate 1 | . . . . . . . . 1 . . . . . . . Haulers 1 | . . . . . . . . . . 1 . . . . . Recompile 5 | . . . . . . . . 1 . 2 . . . . 2 Repair Stations . | . . . . . . . . . . . . . . . . Recycling Units 7 | . 2 . 2 . . . 1 . . 2 . . . . . Recyclers 1 | . . . . . . . . . . 1 . . . . . Mask 1 | . . . . . . . . . . 1 . . . . . Tunnel 5 | . 2 . 2 . . . 1 . . . . . . . . Scanalyzers . | . . . . . . . . . . . . . . . . Garrison Access . | . . . . . . . . . . . . . . . . Data Cores Recovered 3 | . . . . . . . 1 . . 2 . . . . . Used 2 | . . . . . . . . . . 2 . . . . . Hacking Detections 57 | . 8 . 10 . . 1 13 7 . 10 . . . . 8 Full Trace Events 12 | . 4 . 2 . . . 4 . . 1 . . . . 1 Feedback Events 1 | . . . . . . . . . . 1 . . . . . Hackware Fried 1 | . . . . . . . . . . 1 . . . . . Feedback Blocked . | . . . . . . . . . . . . . . . . Robot Schematics Acquired 5 | . . . . . . . . 1 . . . . 4 . . Robots Built 4 | . . . . . . . . 4 . . . . . . . Authchips 1 | . . . . . . . . 1 . . . . . . . Time 44 | . . . . . . . . 44 . . . . . . . Total Robot Build Rating 16 | . . . . . . . . 16 . . . . . . . Part Schematics Acquired 18 | . 2 . 1 . . . 2 1 . . . . 11 . 1 Parts Built 5 | . . . . . . . . . . 2 . . . . 3 Authchips 3 | . . . . . . . . . . 2 . . . . 1 Time 169 | . . . . . . . . . . 87 . . . . 82 Total Part Build Rating 21 | . . . . . . . . . . 6 . . . . 15 Part Studies Acquired 2 | . . . . . . . 1 1 . . . . . . . Parts Repaired 6 | . . . 3 . . . 1 . . 1 . . . . 1 Time 228 | . . . 96 . . . 38 . . 50 . . . . 44 Parts Recycled . | . . . . . . . . . . . . . . . . Recycled Matter . | . . . . . . . . . . . . . . . . Retrieved Matter . | . . . . . . . . . . . . . . . . Retrieved Components 36 | . 7 . 19 . . . 6 . . 3 . . . . 1 Parts Scanalyzed 4 | . . . 1 . . . 2 . . . . . . . 1 Part Schematics Acquired 4 | . . . 1 . . . 2 . . . . . . . 1 Parts Damaged 1 | . . . . . . . . . . . . . . . 1 Bothacking | -11 -10 -10 -9 -9 -9 -8 -8 -7 -7 -7 -7 -7 -7 -6 -6 ------------ Run | Yrd Mat Min Mat Min Exi Min Mat Fac Was Fac Low Low Dat Pro Fac Used RIF Installer . | . . . . . . . . . . . . . . . . Robots Hacked 3 | . . . . . . . . 3 . . . . . . . Non-combat 3 | . . . . . . . . 3 . . . . . . . Combat . | . . . . . . . . . . . . . . . . Robot Hacks Applied 3 | . . . . . . . . 3 . . . . . . . find_chute 2 | . . . . . . . . 2 . . . . . . . find_recycling 1 | . . . . . . . . 1 . . . . . . . Relay Couplers Released 6 | . . . . . . . . 4 . . . . . . 2 Machine Destruction 2 | . . . . . . . . . . . . . . . 2 Programmers 4 | . . . . . . . . 4 . . . . . . . Fabnet Peak Effective % . | . . . . . . . . . . . . . . . . Robots Rewired . | . . . . . . . . . . . . . . . . Allies Hacked . | . . . . . . . . . . . . . . . . Hacks Repelled . | . . . . . . . . . . . . . . . . Allies | -11 -10 -10 -9 -9 -9 -8 -8 -7 -7 -7 -7 -7 -7 -6 -6 -------- Run | Yrd Mat Min Mat Min Exi Min Mat Fac Was Fac Low Low Dat Pro Fac Total Allies 29 | . . . . 3 . . . 6 18 . . . . . 2 Largest Group 18 | . . . . 3 . . . 4 18 . . . . . 2 Highest-Rated Group 434 | . . . . 73 . . . 48 434 . . . . . 52 Highest-Rated Ally 35 | . . . . 31 . . . 26 35 . . . . . 26 Total Orders . | . . . . . . . . . . . . . . . . Ally Attacks 129 | . . . . 10 . . . 12 107 . . . . . . Total Damage 4111 | . . . . 172 . . . 125 3814 . . . . . . Kills 16 | . . . . 2 . . . 1 13 . . . . . . Allies Corrupted . | . . . . . . . . . . . . . . . . Allies Melted . | . . . . . . . . . . . . . . . . Intel | -11 -10 -10 -9 -9 -9 -8 -8 -7 -7 -7 -7 -7 -7 -6 -6 ------- Run | Yrd Mat Min Mat Min Exi Min Mat Fac Was Fac Low Low Dat Pro Fac Active Infowar (turns) 13971 | . . . 2972 512 344 1054 4688 596 474 938 737 496 22 257 881 Optics 3759 | . . . . . . . 3589 170 . . . . . . . Sensors 4398 | . . . . . . . . 593 474 938 737 496 22 257 881 Terrain 73 | . . . . . . . . . . . . . . . 73 T.N.C. 9973 | . . . 2972 512 344 1054 4688 403 . . . . . . . Robot Analysis Total 4 | . . . 2 . . . 1 . . 1 . . . . . Derelict Logs Recovered 5 | . . . . 1 . . . . . . 1 1 . 2 . Drone Launches . | . . . . . . . . . . . . . . . . Drone Recoveries . | . . . . . . . . . . . . . . . . Exploration | -11 -10 -10 -9 -9 -9 -8 -8 -7 -7 -7 -7 -7 -7 -6 -6 ------------- Run | Yrd Mat Min Mat Min Exi Min Mat Fac Was Fac Low Low Dat Pro Fac Turns Passed 15726 | . 1316 284 2974 512 344 1054 4688 596 474 1091 737 496 22 257 881 Spaces Moved 13014 | 1 806 161 1358 305 213 495 1525 1453 715 2060 1309 722 83 636 1172 Core 41 | . . . . . . . . . . . . . . . 41 Treads 4127 | . 70 161 1358 305 213 495 1525 . . . . . . . . Legs 737 | 1 736 . . . . . . . . . . . . . . Wheels . | . . . . . . . . . . . . . . . . Hover . | . . . . . . . . . . . . . . . . Flight 8109 | . . . . . . . . 1453 715 2060 1309 722 83 636 1131 Fastest Speed 26 | 120 120 160 160 160 160 160 145 26 26 26 26 26 26 26 27 Average Speed 87 | 120 123 160 168 160 160 160 259 27 26 27 26 26 26 26 38 Slowest Speed 315 | 120 160 160 240 160 160 160 312 315 27 32 26 96 26 30 200 Overloaded Moves . | . . . . . . . . . . . . . . . . Propulsion Burnouts . | . . . . . . . . . . . . . . . . Robots Hopped 41 | . . . . . . . . 35 . 1 . . . . 5 Potential Cave-ins 2 | . . . . . . . . . . . . . . 2 . Cave-ins Triggered 1 | . . . . . . . . . . . . . . 1 . Exploration Rate (%) 64 | 2 98 42 99 54 59 88 85 49 97 43 89 50 70 74 26 Regions Visited 15 Branch Regions 8 Pre-discovered Areas 6 | . 2 . 2 . . . 1 . . . . . . 1 . Known Exits Taken 9 | . 1 1 1 . . . 1 . . 1 1 1 1 1 . Unknown Exits Taken 4 | 1 . . . 1 1 1 . . . . . . . . . Scrap Searched 11 | . . 2 . 1 . . . . . . 3 4 . 1 . Spaces Dug 122 | . . . . . . . 8 21 . 21 . 53 . 4 15 Terrain Destroyed 376 | . 48 11 20 . . 17 90 63 . 38 . 68 . 4 17 Melee 51 | . . . . . . . . 21 . 11 . . . 4 15 Projectile 68 | . . . 1 . . . 32 . . 13 . 20 . . 2 AOE 257 | . 48 11 19 . . 17 58 42 . 14 . 48 . . . Terrain Rammed . | . . . . . . . . . . . . . . . . Walls Destroyed . | . . . . . . . . . . . . . . . . Machines Disabled . | . . . . . . . . . . . . . . . . Actions | -11 -10 -10 -9 -9 -9 -8 -8 -7 -7 -7 -7 -7 -7 -6 -6 --------- Run | Yrd Mat Min Mat Min Exi Min Mat Fac Was Fac Low Low Dat Pro Fac Total 16315 | . 980 178 1841 318 217 749 1976 1561 996 2492 1696 997 82 719 1513 Wait 2374 | . 35 . 281 1 1 242 219 64 264 318 369 242 . 76 262 Move 12920 | . 805 160 1357 304 212 494 1524 1385 714 2057 1308 721 82 634 1163 Hop 38 | . . . . . . . . 33 . 1 . . . . 4 Pick Up 59 | . 12 1 6 1 2 . 18 8 3 2 . . . . 6 Fast Attach 45 | . 1 . 4 . . . 13 4 2 8 2 1 . 2 8 Attach 16 | . . . 1 . . . 3 5 . 3 . 3 . 1 . Detach 4 | . . . . . . . . . . 1 . 3 . . . Swap 123 | . 15 6 31 . . 2 28 8 7 11 4 2 . . 9 Drop 92 | . 19 4 21 . 2 . 20 8 6 3 . 1 . 1 7 Fire 395 | . 81 6 114 10 . 2 126 7 . 18 . 24 . . 7 Melee 126 | . . . . . . . 5 27 . 40 3 . . 4 47 Ram . | . . . . . . . . . . . . . . . . Kick 12 | . 12 . . . . . . . . . . . . . . Crush 58 | . . 1 26 2 . 9 20 . . . . . . . . Escape Stasis 43 | . . . . . . . . 12 . 30 . . . 1 . Rewire . | . . . . . . . . . . . . . . . . Trap 10 | . . . . . . . . . . . 10 . . . . Miscellaneous . | . . . . . . . . . . . . . . . . Route ------- -11/Scrapyard -10/Materials (discovered 4 exits: *Mat x3 / *Min) -10/Mines (discovered 2 exits: *Mat / [*Sub]) -9/Materials (discovered 5 exits: *Mat x3 / *Min x2) -9/Mines (discovered 2 exits: *Mat / *Exi) -9/Exiles -8/Mines -8/Materials (discovered 2 exits: *Fac x2) -7/Factory (discovered 4 exits: *Fac x3 / *Low) -7/Waste -7/Factory (discovered 4 exits: *Fac / *Sto / *Low x2) -7/Lower Caves -7/Lower Caves (discovered 2 exits: *Fac / *Dat) -7/Data Miner -6/Proximity Caves -6/Factory (discovered 2 exits: *Fac / *Low) History --------- Turn | Location | Event 1 | -11/Scrapyard | Discovered new exit (range 0) 1 | -11/Scrapyard | Entered Materials 131 | -10/Materials | Discovered new exit (range 12) 183 | -10/Materials | Identified exit to Mines 304 | -10/Materials | Build established: Mutant 558 | -10/Materials | Discovered new exit (range 14) 737 | -10/Materials | Discovered new exit (range 8) 1065 | -10/Materials | Core integrity fell below 50% 1132 | -10/Materials | Discovered new exit (range 14) 1157 | -10/Materials | Core integrity fell below 20% 1184 | -10/Materials | Identified exit to Materials 1317 | -10/Materials | Entered Mines 1478 | -10/Mines | Received a Rocket Launcher from a helpful Derelict 1514 | -10/Mines | Discovered new exit (range 8) 1565 | -10/Mines | Discovered exit to Materials (range 16) 1601 | -10/Mines | Entered Materials 1601 | -9/Materials | Evolved 2 slots: Utility x2 1767 | -9/Materials | Discovered new exit (range 11) 1897 | -9/Materials | Build established: Scavenger-Mutant 2310 | -9/Materials | Discovered new exit (range 13) 2465 | -9/Materials | Build established: Mutant 2577 | -9/Materials | Repaired Ion Engine 2617 | -9/Materials | Repaired Imp. Heat Sink 2794 | -9/Materials | Discovered new exit (range 5) 2929 | -9/Materials | Build established: Scavenger-Mutant 3064 | -9/Materials | Central database locked down 3288 | -9/Materials | Identified exit to Mines 3509 | -9/Materials | Build established: Mutant 3633 | -9/Materials | Discovered new exit (range 12) 3991 | -9/Materials | Repaired Imp. Ion Engine 4200 | -9/Materials | Discovered new exit (range 16) 4575 | -9/Materials | Entered Mines 4578 | -9/Mines | Received a Mining Laser from a helpful Derelict 4670 | -9/Mines | Deemed a non-threat by the Exiles lab entrance 4672 | -9/Mines | Discovered new exit (range 5) 4702 | -9/Mines | Discovered new exit (range 9) 4781 | -9/Mines | Learned Materials terminal intel 4853 | -9/Mines | Found a Scrap Suit stashed away for nefarious purposes 4953 | -9/Mines | Assembled infested the area 4958 | -9/Mines | Assisted by a Guerilla fighting off Assembled 5087 | -9/Mines | Entered Exiles 5126 | -9/Exiles | Met 8R-AWN 5155 | -9/Exiles | Met EX-HEX 5198 | -9/Exiles | Met EX-BIN 5215 | -9/Exiles | Aligned with FarCom system 5217 | -9/Exiles | Given EX-Vault access code 5260 | -9/Exiles | Opened EX-Vault 5274 | -9/Exiles | Found Superbattery 5283 | -9/Exiles | Found Skeleton Box 5315 | -9/Exiles | Warned to stay clear of 0b10 Research branches 5359 | -9/Exiles | Met EX-DEC 5418 | -9/Exiles | Discovered new exit (range 10) 5431 | -9/Exiles | Stole two prototypes: Superbattery, Skeleton Box 5431 | -9/Exiles | Entered Mines 5446 | -8/Mines | Discovered new exit (range 9) 6485 | -8/Mines | Entered Materials 6485 | -8/Materials | Evolved 2 slots: Utility x2 6486 | -8/Materials | Loaded intel: 12 terminal locations 6620 | -8/Materials | Repaired Hrd. Medium Armor Plating 7884 | -8/Materials | Build established: Skirmisher 7939 | -8/Materials | Discovered new exit (range 20) 9925 | -8/Materials | Discovered new exit (range 11) 10485 | -8/Materials | First assault squad dispatched 11002 | -8/Materials | Lost 4 parts (1n3u) 11095 | -8/Materials | Identified exit to Factory 11173 | -8/Materials | Entered Factory 11173 | -7/Factory | Evolved 2 slots: Propulsion x2 11175 | -7/Factory | FarCom data flow suspended 11249 | -7/Factory | Discovered new exit (range 14) 11257 | -7/Factory | Identified exit to Factory 11325 | -7/Factory | Discovered new exit (range 14) 11429 | -7/Factory | Discovered exit to Factory (range 16) 11473 | -7/Factory | Central database locked down 11516 | -7/Factory | Build established: Hacker-Scout 11573 | -7/Factory | Search patrols dispatched 11629 | -7/Factory | Fabricated S-27 Virus? 11717 | -7/Factory | Discovered exit to Factory (range 12) 11769 | -7/Factory | Manually triggered Chute Trap 11769 | -7/Factory | Sucked down chute 11769 | -7/Factory | Entered Waste 11771 | -7/Waste | Spotted C-40 Crusher 11791 | -7/Waste | Spotted C-40 Crusher 11795 | -7/Waste | Warlord forces began an assault 11850 | -7/Waste | Lost 6 allies 11875 | -7/Waste | Build established: Hacker-Sprinter 11913 | -7/Waste | Spotted C-40 Crusher 11952 | -7/Waste | Lost 3 allies 12081 | -7/Waste | Discovered new exit (range 13) 12145 | -7/Waste | Identified exit to Factory 12243 | -7/Waste | Entered Factory 12293 | -7/Factory | Discovered exit to Factory (range 3) 12330 | -7/Factory | Adv. Hacking Suite fried by hacking feedback 12455 | -7/Factory | Repaired Lgt. Angular Momentum Engine 12626 | -7/Factory | Identified exit to Storage 12626 | -7/Factory | Identified exit to Lower Caves 12898 | -7/Factory | Lost 3 parts (2n1u) 12958 | -7/Factory | Fabricated Imp. VTOL Module? 13178 | -7/Factory | Fabricated Imp. VTOL Module (x1) 13226 | -7/Factory | Found Prototype Launcher 13226 | -7/Factory | Identified Rocket Array 13334 | -7/Factory | Entered Lower Caves 13335 | -7/Lower Caves | Encountered a Warlord checkpoint 13338 | -7/Lower Caves | Attracted the attention of an 0b10 checkpoint 13449 | -7/Lower Caves | Learned Factory trap positions 13453 | -7/Lower Caves | Entered a destroyed Warlord outpost 13499 | -7/Lower Caves | Discovered new exit (range 15) 13502 | -7/Lower Caves | Identified exit to Lower Caves 14071 | -7/Lower Caves | Entered another Lower Caves area 14072 | -7/Lower Caves | Encountered a Warlord checkpoint 14419 | -7/Lower Caves | Learned Factory stockpile data 14420 | -7/Lower Caves | Discovered exit to Factory (range 9) 14498 | -7/Lower Caves | Attracted the attention of an 0b10 outpost 14513 | -7/Lower Caves | Core integrity fell below 50% 14556 | -7/Lower Caves | Encountered a Master Thief 14557 | -7/Lower Caves | Encountered a Master Thief 14557 | -7/Lower Caves | Encountered a Master Thief 14563 | -7/Lower Caves | Discovered new exit (range 7) 14565 | -7/Lower Caves | Identified exit to Data Miner 14567 | -7/Lower Caves | Entered Data Miner 14567 | -7/Data Miner | Discovered new exit (range 6) 14572 | -7/Data Miner | Met Data Miner 14582 | -7/Data Miner | Received God Mode back door access code from Data Miner 14588 | -7/Data Miner | Identified exit to Proximity Caves 14589 | -7/Data Miner | Entered Proximity Caves 14690 | -6/Proximity Caves | Spotter reported a threat 14819 | -6/Proximity Caves | Attracted the attention of an 0b10 checkpoint 14843 | -6/Proximity Caves | Crushed by falling debris 14843 | -6/Proximity Caves | Discovered exit to Factory (range 9) 14846 | -6/Proximity Caves | Entered Factory 14846 | -6/Factory | Evolved 2 slots: Propulsion x1, Utility x1 14847 | -6/Factory | Loaded intel: 74 trap records 14874 | -6/Factory | Lost 4 parts (1p2n1w) 14955 | -6/Factory | Discovered new exit (range 10) 15007 | -6/Factory | Identified exit to Lower Caves 15010 | -6/Factory | Discovered new exit (range 10) 15012 | -6/Factory | Identified exit to Factory 15198 | -6/Factory | Repaired Broken Rocket Array? 15313 | -6/Factory | Fabricated Mic. Fission Core? 15390 | -6/Factory | Incoming investigation squad redirected 15467 | -6/Factory | Fabricated Imp. VTOL Module (x1) 15727 | -6/Factory | Self-destructed Last Messages --------------- 15671_ Sneak attack on R-10 Processor. 15671_ Destroyed Hpw. Tractor Beam. 15675_ Destroyed Com. Wheel. 15689_ R-10 Processor collects Unknown Wheel. 15690_ Sneak attack on R-10 Processor. 15690_ R-10 Processor destroyed. 15700_ R-10 Processor collects Com. Wheel. 15701_ R-10 Processor collects Hpw. Tractor Beam. 15705_ K-01 Serf cleans the Garrison Access. 15711_ Xenon Bombardment Thruster destroyed. 15714_ K-01 Serf destroyed. 15716_ Connecting with Garrison Access... >>Seal Access door sealed. 15719_ Imp. VTOL Module destroyed. 15720_ Acquired Corrupted Lgt. Ion Engine. 15720_ Integrated Corrupted Lgt. Ion Engine (+2). 15726_ R-10 Processor collects Unknown Wheel. 15726_ Relay Coupler [Swarmer] tumbles out of Garrison Access. 15726_ Relay Coupler [Behemoth] tumbles out of Garrison Access. Map ----- +----------------------------------------------------+ | ###?#""" # # # | | #?### # """ # % # | | ??### # """"" # ############ | | #???##########+########## """"" #= #??????? ? | | ?##???### ? ????#### # | #????????"" | | ??#???#?# """""""""???## !#% #?????????" | | #?#???#?# #?########## #??????????? | | #?#?##??# """"""""" #?########## #??????????? | | ?????#??# ### # #??????????? | | ?#??#??## """"""""" #?# =[ """ # #??????????? | | ??#???### ### ! """ # #??????????? | | #?###### ?"""""""""???# """ # #??????????? | | ?##?#?### ? ?? ??#?# ! % u #??????????? | | ???###?????"?"??? ?? ??# %""" # #??????????? | | ?#?##??#? ????"?? ? ?#?# =""" # #??????????? | | ?##?#??#???? ??? ?? ??# """ # #??????????? | | ??#????#???#????#??????# m + ?????????? | | ????????#???????#???###/######## ???????? | | ^??#??##???#??#?#???##?#t#??????# ?????? | | ????????################ ####???# ????? | | ?????? #???? ????? | | ??????? #???? ###+###????? | | ??????? "" ##### #??? ??????? | | ??????? p R !G" R #????[?????? | | ??????? l ! " #??????????? | | ??????? g % @ #??????????? | | ??????? g k #??????????? | | ????????""" """" """" #??????????? | | ????????????"""" """" ########??????????? | | ?????????????""" """" #?????????????????? | | ??????????????"" """" #?????????????????? | | ?????????????????"""" #?????????????????? | | ?????????????????"""" #?????????????????? | | ?????????????????? #?????????????????? | | ?????????????????? t #?????????????????? | | ??????????????????#########+####?????????????????? | | ?????????????????????????????????????????????????? | | ?????????????????????????????????????????????????? | | ?????????????????????????????????????????????????? | | ?????????????????????????????????????????????????? | | ?????????????????????????????????????????????????? | | ?????????????????????????????????????????????????? | | ?????????????????????????????????????????????????? | | ?????????????????????????????????????????????????? | | ?????????????????????????????????????????????????? | | ?????????????????????????????????????????????????? | | ?????????????????????????????????????????????????? | | ?????????????????????????????????????????????????? | | ?????????????????????????????????????????????????? | | ?????????????????????????????????????????????????? | +----------------------------------------------------+ Best States ------------- Heat Dissipation 59 Energy Generation 18 Energy Capacity 1650 Matter Stores 300 Matter Capacity 300 Sight Range 20 Robot Scan Range 15 Terrain Scan Range 20 Terrain Scan Density 210 Base Temperature (-) 100 Armor Coverage 600 Resistance: KI 30 Resistance: TH 10 Evasion (%) 72 Core Analysis 6 Recoil Reduction 2 Salvage Targeting 2 Offensive Hacking 44 Defensive Hacking 10 Authchip Count 1 Item Schematics ----------------- Med. Storage Unit | -10/Materials | Hacked Lrg. Storage Unit | -10/Materials | Hacked VTOL Module | -9/Materials | Scanalyzed Adv. Beam Cannon | -8/Materials | Scanalyzed Imp. VTOL Module | -8/Materials | Scanalyzed Jamming Amplifier | -7/Factory | Hacked Combat Drone Bay | -7/Data Miner | Free Lgt. Regenerative Plating | -7/Data Miner | Free Cld. Aerolev Unit | -7/Data Miner | Free Gravity Neutralizer | -7/Data Miner | Free Prc. Rocket Launcher | -7/Data Miner | Free Hvy. Treads | -7/Data Miner | Free Imp. Coolant Injector | -7/Data Miner | Free Enh. Gauss Cannon | -7/Data Miner | Free Adv. Recoil Stabilizer | -7/Data Miner | Free Thunder Leg | -7/Data Miner | Free Adv. Reaction Control System | -7/Data Miner | Free Rocket Array | -6/Factory | Scanalyzed Robot Schematics ------------------ S-27 Virus | -7/Factory | Hacked E-15 Imp | -7/Data Miner | Free L-41 Fighter | -7/Data Miner | Free A-15 Conveyor | -7/Data Miner | Free B-60 Warrior | -7/Data Miner | Free Fabricated ------------ S-27 Virus | x4 | -7/Factory | Authchip Imp. VTOL Module | x1 | -7/Factory | Authchip Imp. VTOL Module | x1 | -7/Factory | Authchip Mic. Fission Core | x2 | -6/Factory | Preloaded Imp. VTOL Module | x1 | -6/Factory | Authchip Repaired ---------- Ion Engine | 83% | -9/Materials Imp. Heat Sink | 55% | -9/Materials Imp. Ion Engine | 67% | -9/Materials Hrd. Medium Armor Plating | 19% | -8/Materials Lgt. Angular Momentum Engine | 53% | -7/Factory Rocket Array | 81% | -6/Factory | Broken Studied --------- VTOL Module | -8/Materials | Hacked Mic. Nuclear Core | -7/Factory | Hacked Alien Tech Used ----------------- None Achievements -------------- None Challenges ------------ None Game ------ Seed BlanketResetClaw Manual? 0 Play Time 01:52:42 Cumulative 217.9 hours Start 2025.12.21 @ 20:48:31 End 2025.12.21 @ 23:28:23 Sessions 1 Manual Loads 0 Difficulty Rogue Special Mode None Game No. 296 Rogue 295 Adventurer 1 Explorer 0 Win Type - Total 2 Types 1/0/0/1/0/0/0/0/0/0 Lore% 66 Gallery% 62 Achievement% 55 Wizard Run 0 Options --------- Layout 0 ASCII 0 Keyboard 0 Movement Numpad Keybinds 0 Fullscreen 1 Font 24/Smallcaps Map View 76x50 Zoom Use 0% Tactical HUD 1 Map Filters NONE Filters NONE Steam 1 RUN: fb75f4ff-122a-44b1-b1ee-f8470000f8a0